lending/lending_fUSD_20240208
["ID","MTS","AMOUNT","RATE_DAILY","PERIOD"]
[313445955,1707352255560,-500.0,0.00049315,61]
[313445956,1707352255570,-372.5286647,0.00049315,61]
[313445957,1707352255579,-500.0,0.00049315,61]
[313445958,1707352255588,-524.42,0.00049315,61]
[313445959,1707352255598,-500.0,0.00049315,61]
[313445960,1707352255607,-939.56,0.00049315,61]
[313445961,1707352255618,-500.0,0.00049315,61]
[313445962,1707352255627,-500.0,0.00049315,61]
[313445963,1707352255637,-500.0,0.00049315,61]
[313445964,1707352255646,-539.03,0.00049315,61]
[313445965,1707352255655,-500.0,0.00049315,61]
[313445966,1707352255664,-500.0,0.00049315,61]
[313445967,1707352255674,-640.35820035,0.00049315,61]
[313445968,1707352255684,-500.0,0.00049315,61]
[313445969,1707352255694,-500.0,0.00049315,61]
[313445970,1707352255705,-865.49,0.00049315,61]
[313445971,1707352255715,-500.0,0.00049315,61]
[313445972,1707352255725,-500.0,0.00049315,61]
[313445973,1707352255735,-500.0,0.00049315,61]
[313445974,1707352255744,-500.0,0.00049315,61]
[313445975,1707352255754,-500.0,0.00049315,61]
[313445976,1707352255765,-916.9,0.00049315,61]
[313445977,1707352255775,-760.82,0.00049315,61]
[313445978,1707352255784,-500.0,0.00049315,61]
[313445979,1707352255795,-558.41,0.00049315,61]
[313445980,1707352255804,-500.0,0.00049315,61]
[313445981,1707352255814,-500.0,0.00049315,61]
[313445982,1707352255823,-500.0,0.00049315,61]
[313445983,1707352255832,-1197.82,0.00049315,61]
[313445984,1707352255841,-500.0,0.00049315,61]
[313445985,1707352255850,-500.0,0.00049315,61]
[313445986,1707352255859,-500.0,0.00049315,20]
[313445987,1707352255870,-500.0,0.00049315,61]
[313445988,1707352255881,-585.57,0.00049315,61]
[313445989,1707352255890,-2000.0,0.00049315,120]
[313445990,1707352255900,-500.0,0.00049315,61]
[313445991,1707352255909,-500.0,0.00049315,61]
[313445992,1707352255918,-1000.0,0.00049315,7]
[313445993,1707352255928,-500.0,0.00049315,61]
[313445994,1707352255937,-500.0,0.00049315,61]
[313445995,1707352255946,-234.24730431,0.00049315,61]
[313445996,1707352255955,-547.02,0.00049315,61]
[313445997,1707352255964,-500.0,0.00049315,61]
[313445998,1707352255973,-500.0,0.00049315,61]
[313445999,1707352255982,-500.0,0.00049315,61]
[313446000,1707352255991,-500.0,0.00049315,61]
[313446001,1707352256000,-500.0,0.00049315,61]
[313446002,1707352256010,-500.0,0.00049315,61]
[313446003,1707352256019,-500.0,0.00049315,61]
[313446004,1707352256029,-1384.75,0.00049315,61]
[313446005,1707352256038,-617.17172175,0.00049315,61]
[313446006,1707352256048,-618.24,0.00049315,61]
[313446007,1707352256058,-500.0,0.00049315,61]
[313446008,1707352256067,-500.0,0.00049315,61]
[313446009,1707352256077,-500.0,0.00049315,61]
[313446010,1707352256087,-500.0,0.00049315,61]
[313446011,1707352256096,-500.0,0.00049315,30]
[313446012,1707352256105,-500.0,0.00049315,61]
[313446013,1707352256117,-500.0,0.00049315,61]
[313446014,1707352256127,-500.0,0.00049315,61]
[313446015,1707352256138,-826.68,0.00049315,61]
[313446016,1707352256147,-500.0,0.00049315,61]
[313446017,1707352256157,-500.0,0.00049315,61]
[313446018,1707352256167,-500.0,0.00049315,61]
[313446019,1707352256176,-928.31,0.00049315,61]
[313446020,1707352256186,-371.85754819,0.00049315,61]
[313446021,1707352256195,-500.0,0.00049315,61]
[313446022,1707352256205,-500.0,0.00049315,61]
[313446023,1707352256215,-500.0,0.00049315,61]
[313446024,1707352256224,-500.0,0.00049315,61]
[313446025,1707352256233,-500.0,0.00049315,61]
[313446026,1707352256243,-518.64954222,0.00049315,61]
[313446027,1707352256253,-2262.32,0.00049315,61]
[313446028,1707352256262,-2262.32,0.00049315,61]
[313446029,1707352256271,-2262.32,0.00049315,61]
[313446030,1707352256281,-2262.32,0.00049315,61]
[313446031,1707352256295,-500.0,0.00049315,61]
[313446032,1707352256304,-2262.32,0.00049315,61]
[313446033,1707352256314,-500.0,0.00049315,61]
[313446034,1707352256323,-2262.32,0.00049315,61]
[313446035,1707352256333,-500.0,0.00049315,61]
[313446036,1707352256342,-2262.32,0.00049315,61]
[313446037,1707352256352,-2262.32,0.00049315,61]
[313446038,1707352256362,-2262.32,0.00049315,61]
[313446039,1707352256374,-2262.32,0.00049315,61]
[313446040,1707352256384,-938.02,0.00049315,61]
[313446041,1707352256393,-2262.32,0.00049315,61]
[313446042,1707352256403,-500.0,0.00049315,61]
[313446043,1707352256412,-2262.32,0.00049315,61]
[313446044,1707352256422,-500.0,0.00049315,61]
[313446045,1707352256433,-752.28,0.00049315,61]
[313446046,1707352256443,-500.0,0.00049315,61]
[313446047,1707352256453,-2262.32,0.00049315,61]
[313446048,1707352256463,-2262.32,0.00049315,61]
[313446049,1707352256472,-2262.32,0.00049315,61]
[313446050,1707352256482,-2262.32,0.00049315,61]
[313446051,1707352256491,-500.0,0.00049315,61]
[313446052,1707352256501,-2262.32,0.00049315,61]
[313446053,1707352256510,-2262.32,0.00049315,61]
[313446054,1707352256519,-2262.32,0.00049315,61]
[313446055,1707352256529,-500.0,0.00049315,61]
[313446056,1707352256538,-2262.32,0.00049315,61]
[313446057,1707352256548,-2262.32,0.00049315,61]
[313446058,1707352256557,-500.0,0.00049315,61]
[313446059,1707352256566,-2262.32,0.00049315,61]
[313446060,1707352256576,-2262.32,0.00049315,61]
[313446061,1707352256586,-500.0,0.00049315,61]
[313446062,1707352256595,-568.96,0.00049315,61]
[313446063,1707352256605,-500.0,0.00049315,61]
[313446064,1707352256616,-2262.37,0.00049315,61]
[313446065,1707352256625,-529.80527674,0.00049315,61]
[313446066,1707352256634,-703.52,0.00049315,61]
[313446067,1707352256644,-500.0,0.00049315,61]
[313446068,1707352256653,-500.0,0.00049315,61]
[313446069,1707352256663,-500.0,0.00049315,61]
[313446070,1707352256673,-500.0,0.00049315,61]
[313446071,1707352256682,-500.0,0.00049315,61]
[313446072,1707352256692,-500.0,0.00049315,61]
[313446073,1707352256701,-500.0,0.00049315,61]
[313446074,1707352256710,-500.0,0.00049315,61]
[313446075,1707352256719,-500.0,0.00049315,61]
[313446076,1707352256729,-500.0,0.00049315,61]
[313446077,1707352256738,-858.47,0.00049315,61]
[313446078,1707352256748,-500.0,0.00049315,61]
[313446079,1707352256757,-500.0,0.00049315,61]
[313446080,1707352256767,-500.0,0.00049315,61]
[313446081,1707352256776,-500.0,0.00049315,61]
[313446082,1707352256785,-500.0,0.00049315,61]
[313446083,1707352256794,-1538.73,0.00049315,61]
[313446084,1707352256803,-500.0,0.00049315,61]
[313446085,1707352256812,-500.0,0.00049315,61]
[313446086,1707352256822,-500.0,0.00049315,61]
[313446087,1707352256831,-500.0,0.00049315,61]
[313446088,1707352256840,-500.0,0.00049315,61]
[313446089,1707352256849,-500.0,0.00049315,61]
[313446090,1707352256858,-500.0,0.00049315,61]
[313446091,1707352256869,-530.81801233,0.00049315,61]
[313446092,1707352256879,-1916.15,0.00049315,61]
[313446093,1707352256888,-574.83,0.00049315,61]
[313446094,1707352256897,-500.0,0.00049315,61]
[313446095,1707352256906,-1834.83,0.00049315,61]
[313446096,1707352256915,-500.0,0.00049315,61]
[313446097,1707352256924,-970.46,0.00049315,61]
[313446098,1707352256933,-500.0,0.00049315,61]
[313446099,1707352256942,-707.62,0.00049315,61]
[313446100,1707352256951,-500.0,0.00049315,61]
[313446101,1707352256961,-500.0,0.00049315,61]
[313446102,1707352256970,-500.0,0.00049315,61]
[313446103,1707352256979,-1417.44,0.00049315,61]
[313446104,1707352256988,-2451.17,0.00049315,61]
[313446105,1707352256997,-500.0,0.00049315,61]
[313446106,1707352257006,-506.2,0.00049315,61]
[313446107,1707352257016,-500.0,0.00049315,61]
[313446108,1707352257025,-1777.15,0.00049315,61]
[313446109,1707352257035,-500.0,0.00049315,61]
[313446110,1707352257044,-770.2,0.00049315,61]
[313446111,1707352257054,-500.0,0.00049315,61]
[313446112,1707352257063,-740.36,0.00049315,61]
[313446113,1707352257073,-500.0,0.00049315,61]
[313446114,1707352257082,-500.0,0.00049315,61]
[313446115,1707352257091,-500.0,0.00049315,61]
[313446116,1707352257100,-1870.1,0.00049315,61]
[313446117,1707352257109,-889.4,0.00049315,61]
[313446118,1707352257121,-500.0,0.00049315,61]
[313446119,1707352257130,-500.0,0.00049315,61]
[313446120,1707352257141,-500.0,0.00049315,61]
[313446121,1707352257151,-1780.96,0.00049315,61]
[313446122,1707352257160,-500.0,0.00049315,61]
[313446123,1707352257170,-500.0,0.00049315,61]
[313446124,1707352257180,-306.85686417,0.00049315,61]
[313446125,1707352257190,-940.98,0.00049315,61]
[313446126,1707352257200,-1392.06,0.00049315,61]
[313446127,1707352257210,-500.0,0.00049315,61]
[313446128,1707352257221,-500.0,0.00049315,61]
[313446129,1707352257232,-921.14,0.00049315,61]
[313446130,1707352257244,-500.0,0.00049315,30]
[313446131,1707352257255,-500.0,0.00049315,61]
[313446132,1707352257266,-500.0,0.00049315,61]
[313446133,1707352257276,-500.0,0.00049315,61]
[313446134,1707352257287,-1680.21,0.00049315,61]
[313446135,1707352257298,-500.0,0.00049315,61]
[313446136,1707352257309,-500.0,0.00049315,61]
[313446137,1707352257318,-500.0,0.00049315,30]
[313446138,1707352257328,-500.0,0.00049315,61]
[313446139,1707352257338,-653.06,0.00049315,61]
[313446140,1707352257348,-951.93,0.00049315,61]
[313446141,1707352257358,-500.0,0.00049315,61]
[313446142,1707352257375,-326.25586931,0.00049315,61]
[313446143,1707352257385,-500.0,0.00049315,61]
[313446144,1707352257396,-500.0,0.00049315,61]
[313446145,1707352257406,-564.07,0.00049315,61]
[313446146,1707352257417,-870.58,0.00049315,61]
[313446147,1707352257427,-1691.77,0.00049315,61]
[313446148,1707352257438,-1235.6,0.00049315,61]
[313446149,1707352257448,-500.0,0.00049315,61]
[313446150,1707352257458,-754.25,0.00049315,61]
[313446151,1707352257468,-500.0,0.00049315,61]
[313446152,1707352257478,-500.0,0.00049315,61]
[313446153,1707352257488,-500.0,0.00049315,61]
[313446154,1707352257497,-500.0,0.00049315,61]
[313446155,1707352257507,-622.67,0.00049315,61]
[313446156,1707352257517,-1405.32,0.00049315,61]
[313446157,1707352257527,-500.0,0.00049315,61]
[313446158,1707352257537,-500.0,0.00049315,61]
[313446159,1707352257546,-615.0,0.00049315,61]
[313446160,1707352257557,-500.0,0.00049315,61]
[313446161,1707352257566,-1948.15,0.00049315,61]
[313446162,1707352257576,-500.0,0.00049315,61]
[313446163,1707352257586,-500.0,0.00049315,61]
[313446164,1707352257596,-500.0,0.00049315,61]
[313446165,1707352257606,-500.0,0.00049315,61]
[313446166,1707352257619,-500.0,0.00049315,61]
[313446167,1707352257629,-1041.74,0.00049315,61]
[313446168,1707352257639,-500.0,0.00049315,61]
[313446169,1707352257649,-500.0,0.00049315,61]
[313446170,1707352257659,-500.0,0.00049315,61]
[313446171,1707352257671,-2605.78,0.00049315,61]
[313446172,1707352257681,-583.5,0.00049315,61]
[313446173,1707352257691,-1619.51,0.00049315,61]
[313446174,1707352257847,-500.0,0.00049315,61]
[313446175,1707352257856,-501.55574955,0.00049315,61]
[313446176,1707352257869,-500.0,0.00049315,61]
[313446177,1707352257878,-1278.22,0.00049315,61]
[313446178,1707352257888,-500.0,0.00049315,61]
[313446179,1707352257897,-1684.48,0.00049315,61]
[313446180,1707352257908,-500.0,0.00049315,61]
[313446181,1707352257917,-1453.37,0.00049315,61]
[313446182,1707352257927,-500.0,0.00049315,61]
[313446183,1707352257937,-500.0,0.00049315,61]
[313446184,1707352257946,-500.0,0.00049315,61]
[313446185,1707352257956,-502.29651347,0.00049315,61]
[313446186,1707352257966,-505.27,0.00049315,61]
[313446187,1707352257976,-500.0,0.00049315,61]
[313446188,1707352257986,-500.0,0.00049315,61]
[313446189,1707352257995,-500.0,0.00049315,61]
[313446190,1707352258005,-2636.88,0.00049315,61]
[313446191,1707352258014,-500.0,0.00049315,61]
[313446192,1707352258024,-541.2,0.00049315,61]
[313446193,1707352258033,-500.0,0.00049315,61]
[313446194,1707352258042,-916.47,0.00049315,2]
[313446195,1707352258052,-500.0,0.00049315,61]
[313446196,1707352258062,-500.0,0.00049315,61]
[313446197,1707352258071,-1017.65,0.00049315,61]
[313446198,1707352258081,-814.78,0.00049315,61]
[313446199,1707352258090,-1541.71,0.00049315,61]
[313446200,1707352258100,-500.0,0.00049315,61]
[313446201,1707352258109,-500.0,0.00049315,61]
[313446202,1707352258121,-500.0,0.00049315,61]
[313446203,1707352258130,-500.0,0.00049315,61]
[313446204,1707352258140,-500.0,0.00049315,61]
[313446205,1707352258150,-1962.63,0.00049315,61]
[313446206,1707352258159,-500.0,0.00049315,61]
[313446207,1707352258168,-500.0,0.00049315,61]
[313446208,1707352258178,-500.0,0.00049315,61]
[313446209,1707352258188,-500.0,0.00049315,61]
[313446210,1707352258199,-1751.63,0.00049315,61]
[313446211,1707352258209,-581.83,0.00049315,61]
[313446212,1707352258218,-500.0,0.00049315,61]
[313446213,1707352258227,-500.0,0.00049315,61]
[313446214,1707352258236,-500.0,0.00049315,61]
[313446215,1707352258246,-1682.8,0.00049315,30]
[313446216,1707352258256,-512.44591204,0.00049315,61]
[313446217,1707352258265,-1317.22,0.00049315,61]
[313446218,1707352258274,-1400.87,0.00049315,61]
[313446219,1707352258284,-500.0,0.00049315,61]
[313446220,1707352258294,-500.0,0.00049315,61]
[313446221,1707352258306,-2039.55,0.00049315,61]
[313446222,1707352258315,-901.1,0.00049315,61]
[313446223,1707352258324,-500.0,0.00049315,61]
[313446224,1707352258335,-500.0,0.00049315,61]
[313446225,1707352258345,-643.0,0.00049315,61]
[313446226,1707352258354,-982.25,0.00049315,61]
[313446227,1707352258365,-500.0,0.00049315,61]
[313446228,1707352258377,-500.0,0.00049315,61]
[313446229,1707352258387,-510.58708347,0.00049315,61]
[313446230,1707352258396,-2021.8,0.00049315,61]
[313446231,1707352258406,-502.89,0.00049315,61]
[313446232,1707352258415,-2245.28,0.00049315,61]
[313446233,1707352258425,-500.0,0.00049315,61]
[313446234,1707352258434,-1930.17,0.00049315,61]
[313446235,1707352258443,-500.0,0.00049315,61]
[313446236,1707352258452,-500.0,0.00049315,61]
[313446237,1707352258461,-575.83,0.00049315,61]
[313446238,1707352258470,-602.97,0.00049315,61]
[313446239,1707352258479,-500.0,0.00049315,61]
[313446240,1707352258488,-500.0,0.00049315,61]
[313446241,1707352258498,-500.0,0.00049315,61]
[313446242,1707352258508,-500.0,0.00049315,61]
[313446243,1707352258519,-572.44,0.00049315,61]
[313446244,1707352258530,-2270.82,0.00049315,61]
[313446245,1707352258539,-1440.9,0.00049315,61]
[313446246,1707352258549,-512.70059268,0.00049315,61]
[313446247,1707352258558,-811.25,0.00049315,61]
[313446248,1707352258567,-500.0,0.00049315,61]
[313446249,1707352258576,-500.0,0.00049315,61]
[313446250,1707352258586,-500.0,0.00049315,61]
[313446251,1707352258595,-1160.79,0.00049315,61]
[313446252,1707352258604,-500.0,0.00049315,61]
[313446253,1707352258615,-1246.75,0.00049315,61]
[313446254,1707352258624,-500.0,0.00049315,61]
[313446255,1707352258633,-500.0,0.00049315,61]
[313446256,1707352258643,-1201.99,0.00049315,61]
[313446257,1707352258652,-500.0,0.00049315,61]
[313446258,1707352258662,-500.0,0.00049315,61]
[313446259,1707352258671,-1652.71,0.00049315,61]
[313446260,1707352258680,-600.0,0.00049315,61]
[313446261,1707352258689,-500.0,0.00049315,61]
[313446262,1707352258698,-500.0,0.00049315,61]
[313446263,1707352258707,-500.0,0.00049315,61]
[313446264,1707352258716,-338.41147294,0.00049315,61]
[313446265,1707352258725,-696.44,0.00049315,61]
[313446266,1707352258734,-500.0,0.00049315,61]
[313446267,1707352258743,-500.0,0.00049315,61]
[313446268,1707352258752,-1954.15,0.00049315,61]
[313446269,1707352258762,-500.0,0.00049315,61]
[313446270,1707352258771,-500.0,0.00049315,61]
[313446271,1707352258780,-2046.86,0.00049315,61]
[313446272,1707352258789,-500.0,0.00049315,61]
[313446273,1707352258798,-500.0,0.00049315,61]
[313446274,1707352258808,-500.0,0.00049315,61]
[313446275,1707352258817,-500.0,0.00049315,61]
[313446276,1707352258827,-500.0,0.00049315,61]
[313446277,1707352258837,-1778.65,0.00049315,61]
[313446278,1707352258847,-500.0,0.00049315,61]
[313446279,1707352258857,-499.26654432,0.00049315,61]
[313446280,1707352258866,-500.0,0.00049315,61]
[313446281,1707352258875,-500.0,0.00049315,61]
[313446282,1707352258886,-1955.93,0.00049315,61]
[313446283,1707352258895,-583.35351763,0.00049315,61]
[313446284,1707352258904,-883.49,0.00049315,61]
[313446285,1707352258914,-2627.87,0.00049315,61]
[313446286,1707352258924,-2274.21,0.00049315,61]
[313446287,1707352258934,-500.0,0.00049315,61]
[313446288,1707352258943,-500.0,0.00049315,61]
[313446289,1707352258953,-512.23,0.00049315,61]
[313446290,1707352258963,-508.75969335,0.00049315,61]
[313446291,1707352258972,-1148.99,0.00049315,61]
[313446292,1707352258981,-2707.85,0.00049315,61]
[313446293,1707352258990,-500.0,0.00049315,61]
[313446294,1707352258999,-500.0,0.00049315,61]
[313446295,1707352259009,-500.0,0.00049315,61]
[313446296,1707352259021,-226.33,0.00049315,61]
[313446297,1707352259031,-941.28,0.00049315,61]
[313446298,1707352259040,-500.0,0.00049315,61]
[313446299,1707352259049,-500.0,0.00049315,61]
[313446300,1707352259058,-502.05154838,0.00049315,61]
[313446301,1707352259067,-530.90458308,0.00049315,61]
[313446302,1707352259077,-500.0,0.00049315,61]
[313446303,1707352259087,-344.8998339,0.00049315,61]
[313446304,1707352259096,-500.0,0.00049315,5]
[313446305,1707352259105,-1596.23,0.00049315,61]
[313446306,1707352259115,-500.0,0.00049315,61]
[313446307,1707352259124,-1817.8,0.00049315,61]
[313446308,1707352259133,-500.0,0.00049315,61]
[313446309,1707352259143,-872.17,0.00049315,61]
[313446310,1707352259152,-836.26,0.00049315,61]
[313446311,1707352259162,-500.0,0.00049315,61]
[313446312,1707352259171,-500.0,0.00049315,61]
[313446313,1707352259181,-907.66,0.00049315,61]
[313446314,1707352259190,-520.83,0.00049315,61]
[313446315,1707352259199,-500.0,0.00049315,61]
[313446316,1707352259209,-685.59,0.00049315,61]
[313446317,1707352259218,-500.0,0.00049315,61]
[313446318,1707352259227,-500.0,0.00049315,61]
[313446319,1707352259237,-2154.27,0.00049315,61]
[313446320,1707352259246,-922.72,0.00049315,61]
[313446321,1707352259255,-1107.96,0.00049315,61]
[313446322,1707352259265,-1948.44,0.00049315,61]
[313446323,1707352259274,-1141.58,0.00049315,61]
[313446324,1707352259284,-500.0,0.00049315,61]
[313446325,1707352259296,-500.0,0.00049315,61]
[313446326,1707352259307,-500.0,0.00049315,61]
[313446327,1707352259317,-500.0,0.00049315,61]
[313446328,1707352259327,-500.0,0.00049315,61]
[313446329,1707352259337,-500.0,0.00049315,61]
[313446330,1707352259347,-500.0,0.00049315,61]
[313446331,1707352259357,-5000.0,0.00049315,61]
[313446332,1707352259368,-500.0,0.00049315,61]
[313446333,1707352259377,-515.87127165,0.00049315,61]
[313446334,1707352259387,-739.82,0.00049315,61]
[313446335,1707352259396,-266.77576701,0.00049315,61]
[313446336,1707352259406,-763.92,0.00049315,61]
[313446337,1707352259415,-751.78,0.00049315,61]
[313446338,1707352259424,-500.0,0.00049315,61]
[313446339,1707352259434,-500.0,0.00049315,61]
[313446340,1707352259443,-500.0,0.00049315,61]
[313446341,1707352259453,-500.0,0.00049315,61]
[313446342,1707352259462,-500.0,0.00049315,61]
[313446343,1707352259471,-1367.52,0.00049315,61]
[313446344,1707352259481,-500.0,0.00049315,7]
[313446345,1707352259491,-758.73,0.00049315,61]
[313446346,1707352259500,-245.19287779,0.00049315,61]
[313446347,1707352259510,-1598.6,0.00049315,61]
[313446348,1707352259519,-829.29,0.00049315,61]
[313446349,1707352259528,-2054.45,0.00049315,61]
[313446350,1707352259537,-500.0,0.00049315,61]
[313446351,1707352259546,-500.0,0.00049315,61]
[313446352,1707352259555,-500.0,0.00049315,61]
[313446353,1707352259564,-568.81,0.00049315,61]
[313446354,1707352259573,-500.0,0.00049315,61]
[313446355,1707352259582,-500.0,0.00049315,61]
[313446356,1707352259592,-500.0,0.00049315,61]
[313446357,1707352259602,-500.0,0.00049315,61]
[313446358,1707352259610,-500.0,0.00049315,61]
[313446359,1707352259620,-500.0,0.00049315,61]
[313446360,1707352259629,-500.0,0.00049315,61]
[313446361,1707352259638,-500.0,0.00049315,61]
[313446362,1707352259648,-500.0,0.00049315,61]
[313446363,1707352259657,-500.0,0.00049315,61]
[313446364,1707352259667,-500.0,0.00049315,61]
[313446365,1707352259676,-1880.34,0.00049315,61]
[313446366,1707352259685,-500.0,0.00049315,61]
[313446367,1707352259695,-500.0,0.00049315,61]
[313446368,1707352259705,-500.0,0.00049315,61]
[313446369,1707352259715,-500.0,0.00049315,61]
[313446370,1707352259725,-1194.04,0.00049315,61]
[313446371,1707352259735,-500.0,0.00049315,61]
[313446372,1707352259745,-500.0,0.00049315,61]
[313446373,1707352259756,-378.71580211,0.00049315,61]
[313446374,1707352259765,-500.0,0.00049315,61]
[313446375,1707352259774,-500.0,0.00049315,61]
[313446376,1707352259784,-576.94417055,0.00049315,61]
[313446377,1707352259793,-785.3,0.00049315,61]
[313446378,1707352259802,-662.7,0.00049315,61]
[313446379,1707352259811,-500.0,0.00049315,61]
[313446380,1707352259821,-2010.86,0.00049315,61]
[313446381,1707352259830,-500.0,0.00049315,61]
[313446382,1707352259840,-500.0,0.00049315,61]
[313446383,1707352259850,-795.87,0.00049315,61]
[313446384,1707352259861,-1000.0,0.00049315,120]
[313446385,1707352259871,-500.0,0.00049315,61]
[313446386,1707352259881,-500.0,0.00049315,61]
[313446387,1707352259890,-1003.29,0.00049315,61]
[313446388,1707352259899,-853.31,0.00049315,2]
[313446389,1707352259909,-500.0,0.00049315,61]
[313446390,1707352259918,-500.0,0.00049315,61]
[313446391,1707352259927,-1136.02,0.00049315,61]
[313446392,1707352259936,-500.0,0.00049315,61]
[313446393,1707352260280,-500.0,0.00049315,61]
[313446394,1707352260293,-500.0,0.00049315,61]
[313446395,1707352260302,-1262.5,0.00049315,61]
[313446396,1707352260312,-972.61,0.00049315,61]
[313446397,1707352260322,-500.0,0.00049315,61]
[313446398,1707352260334,-500.0,0.00049315,61]
[313446399,1707352260343,-500.0,0.00049315,61]
[313446400,1707352260353,-543.05,0.00049315,61]
[313446401,1707352260362,-500.0,0.00049315,61]
[313446402,1707352260373,-500.0,0.00049315,61]
[313446403,1707352260383,-1827.95,0.00049315,61]
[313446404,1707352260392,-500.0,0.00049315,61]
[313446405,1707352260401,-500.0,0.00049315,61]
[313446406,1707352260410,-500.0,0.00049315,61]
[313446407,1707352260419,-395.55354181,0.00049315,61]
[313446408,1707352260429,-2480.01,0.00049315,61]
[313446409,1707352260438,-666.41,0.00049315,61]
[313446410,1707352260447,-666.41,0.00049315,61]
[313446411,1707352260457,-500.0,0.00049315,61]
[313446412,1707352260466,-666.41,0.00049315,61]
[313446413,1707352260476,-500.0,0.00049315,61]
[313446414,1707352260485,-666.41,0.00049315,61]
[313446415,1707352260495,-666.41,0.00049315,61]
[313446416,1707352260504,-627.93,0.00049315,61]
[313446417,1707352260513,-666.41,0.00049315,61]
[313446418,1707352260523,-666.41,0.00049315,61]
[313446419,1707352260532,-666.41,0.00049315,61]
[313446420,1707352260541,-2101.45,0.00049315,61]
[313446421,1707352260550,-666.41,0.00049315,61]
[313446422,1707352260560,-666.41,0.00049315,61]
[313446423,1707352260569,-666.41,0.00049315,61]
[313446424,1707352260578,-500.0,0.00049315,61]
[313446425,1707352260587,-666.41,0.00049315,61]
[313446426,1707352260597,-666.41,0.00049315,61]
[313446427,1707352260606,-666.41,0.00049315,61]
[313446428,1707352260615,-666.41,0.00049315,61]
[313446429,1707352260625,-666.41,0.00049315,61]
[313446430,1707352260635,-500.0,0.00049315,61]
[313446431,1707352260644,-666.41,0.00049315,61]
[313446432,1707352260653,-666.41,0.00049315,61]
[313446433,1707352260663,-666.41,0.00049315,61]
[313446434,1707352260672,-2373.65,0.00049315,61]
[313446435,1707352260683,-666.41,0.00049315,61]
[313446436,1707352260692,-666.41,0.00049315,61]
[313446437,1707352260703,-666.41,0.00049315,61]
[313446438,1707352260715,-526.20419488,0.00049315,61]
[313446439,1707352260724,-1000.0,0.00049315,7]
[313446440,1707352260733,-666.41,0.00049315,61]
[313446441,1707352260743,-666.63937982,0.00049315,61]
[313446442,1707352260752,-500.0,0.00049315,61]
[313446443,1707352260761,-526.29,0.00049315,120]
[313446444,1707352260771,-500.0,0.00049315,61]
[313446445,1707352260780,-500.0,0.00049315,61]
[313446446,1707352260789,-500.0,0.00049315,61]
[313446447,1707352260799,-500.0,0.00049315,61]
[313446448,1707352260808,-500.0,0.00049315,61]
[313446449,1707352260817,-500.0,0.00049315,61]
[313446450,1707352260826,-500.0,0.00049315,61]
[313446451,1707352260835,-500.0,0.00049315,61]
[313446452,1707352260845,-770.63,0.00049315,60]
[313446453,1707352260854,-676.27,0.00049315,61]
[313446454,1707352260863,-538.04,0.00049315,61]